bitfinex/quotes_BTCUSD_20251231
["timestamp","ask_amount","ask_price","bid_price","bid_amount"]
[1767189084992,0.00033838,88962.0,88960.0,0.00055]
[1767189085426,0.00033838,88962.0,88960.0,0.00050878]
[1767189085640,0.00033838,88962.0,88955.0,0.39925]
[1767189085838,0.41793,88970.0,88955.0,0.39925]
[1767189086397,0.13513742,88969.0,88955.0,0.39925]
[1767189086800,0.13513742,88969.0,88955.0,0.39920858]
[1767189088222,0.13513742,88969.0,88947.0,0.01128]
[1767189088223,0.00059,88955.0,88947.0,0.01128]
[1767189088362,0.00059,88955.0,88948.0,0.39925]
[1767189088561,0.0112386,88979.0,88948.0,0.39925]
[1767189088562,0.41793,88967.0,88948.0,0.39925]
[1767189088783,0.0112381,88983.0,88948.0,0.39925]
[1767189088784,0.01128,88970.0,88948.0,0.39925]
[1767189090804,0.01128,88970.0,88950.0,0.81672015]
[1767189090984,0.01128,88970.0,88947.0,0.01138608]
[1767189090985,0.13513742,88967.0,88947.0,0.01138608]
[1767189091367,0.41793,88966.0,88947.0,0.01138608]
[1767189091540,0.41793,88966.0,88947.0,0.41063608]
[1767189093395,0.01128,88970.0,88947.0,0.41063608]
[1767189094040,0.01128,88970.0,88951.0,0.39925]
[1767189095923,0.41793,88969.0,88951.0,0.39925]
[1767189104212,0.01128,88971.0,88951.0,0.39925]
[1767189106113,0.0002898,88980.0,88971.0,0.399799]
[1767189106313,8e-07,88980.0,88971.0,0.41053]
[1767189106756,0.03032836,89005.0,88981.0,0.39925]
[1767189106992,0.02423389,89004.0,88982.0,0.01128]
[1767189107118,0.85832851,89010.0,88982.0,0.01128]
[1767189107119,0.4182198,88997.0,88982.0,0.01128]
[1767189107518,0.0002898,88997.0,88982.0,0.01128]
[1767189107723,0.0002898,88997.0,88983.0,0.39925]
[1767189108082,0.00064332,88997.0,88983.0,0.39925]
[1767189109587,0.00064332,88997.0,88982.0,0.01128]
[1767189109588,0.39597332,88997.0,88982.0,0.01128]
[1767189111808,0.00064332,88997.0,88983.0,0.38531]
[1767189111989,0.39597332,88997.0,88983.0,0.38531]
[1767189118929,0.39597332,88997.0,88982.0,0.01128]
[1767189122311,0.00038332,88997.0,88983.0,0.38531]
[1767189123775,3.32e-06,88997.0,88983.0,0.38531]
[1767189124660,0.00023691,89011.0,88988.0,0.38531]
[1767189124860,0.0002898,89015.0,88990.0,0.38531]
[1767189125215,0.0002898,89015.0,88992.0,0.38531]
[1767189126387,0.0002898,89015.0,88994.0,0.38531]
[1767189131107,0.0002898,89015.0,88995.0,0.01128]
[1767189131108,0.76623037,89010.0,88995.0,0.01128]
[1767189131310,0.76623037,89010.0,88995.0,0.05624]
[1767189131507,0.0002898,89015.0,88996.0,0.38531]
[1767189131965,0.0002898,89015.0,88996.0,0.38410781]
[1767189132719,0.0002898,89015.0,89001.0,0.38531]
[1767189132927,0.0002898,89015.0,89003.0,0.38531]
[1767189138849,8e-07,89015.0,89003.0,0.38531]
[1767189139213,0.40958372,89026.0,89003.0,0.38531]
[1767189139214,0.0223522,89026.0,89013.0,0.39742]
[1767189139417,0.0223522,89026.0,89016.0,0.39742]
[1767189140388,0.0225316,89026.0,89016.0,0.39742]
[1767189141880,2.28e-06,89026.0,89017.0,0.39742]
[1767189142096,0.0004,89037.0,89023.0,0.39742]
[1767189142284,0.0004,89037.0,89016.0,0.37090037]
[1767189142285,0.0004,89037.0,89025.0,0.39742]
[1767189146572,0.0004,89037.0,89027.0,0.37065165]
[1767189147089,0.0004,89037.0,89025.0,0.39742]
[1767189147296,0.0004,89037.0,89027.0,0.37065165]
[1767189148693,0.0004,89037.0,89025.0,0.39742]
[1767189149342,0.0002955,89041.0,89027.0,0.37065165]
[1767189149343,0.3979455,89041.0,89027.0,0.37065165]
[1767189149676,0.39805147,89041.0,89030.0,0.37065165]
[1767189149848,0.39805147,89041.0,89031.0,0.01128]
[1767189150489,2.38065165,89050.0,89031.0,0.01128]
[1767189150490,2.01,89050.0,89032.0,0.39742]
[1767189150639,0.0002955,89058.0,89032.0,0.39742]
[1767189150640,0.0002955,89058.0,89040.0,0.7413033]
[1767189150840,0.0002955,89058.0,89048.0,0.37065165]
[1767189151004,0.0002955,89058.0,89049.0,0.01128]
[1767189151005,0.3979455,89058.0,89049.0,0.01128]
[1767189151207,0.3979455,89058.0,89042.0,0.13513742]
[1767189151208,0.001099,89049.0,89042.0,0.13513742]
[1767189151407,0.001099,89049.0,89043.0,0.01128]
[1767189151933,0.3979455,89058.0,89043.0,0.01128]
[1767189152164,0.3979455,89058.0,89048.0,0.37065165]
[1767189152381,0.3979455,89058.0,89043.0,0.05199]
[1767189152680,0.3979455,89058.0,89048.0,0.41231165]
[1767189152681,0.0002955,89058.0,89048.0,0.41231165]
[1767189152815,0.0002955,89058.0,89049.0,0.04166]
[1767189153018,0.0002,89059.0,89048.0,0.37065165]
[1767189153019,0.0002,89059.0,89051.0,0.04166]
[1767189153914,0.0002,89059.0,89050.0,0.01128]
[1767189154750,0.0002,89059.0,89051.0,0.04322]
[1767189154960,0.76830165,89070.0,89058.0,0.04322]
[1767189154961,0.39765,89070.0,89058.0,0.04322]
[1767189155171,0.39765,89070.0,89057.0,0.13513742]
[1767189155172,0.0002,89086.0,89057.0,0.13513742]
[1767189155173,0.00023663,89080.0,89061.0,0.04282]
[1767189155374,0.00023663,89080.0,89060.0,0.7413033]
[1767189155375,0.00023663,89080.0,89071.0,0.13513742]
[1767189155574,0.00023663,89080.0,89072.0,0.01128]
[1767189155946,0.00023663,89080.0,89063.0,0.011228]
[1767189155947,0.0002,89086.0,89070.0,0.37065165]
[1767189156117,0.398199,89072.0,89071.0,0.01073]
[1767189156323,0.00010595,89072.0,89071.0,0.01128]
[1767189156698,0.39785,89086.0,89071.0,0.01128]
[1767189156897,0.39785,89086.0,89066.0,0.14545]
[1767189156898,0.3982031,89086.0,89073.0,0.13513742]
[1767189157119,0.3982031,89086.0,89074.0,0.01128]
[1767189157320,0.3982031,89086.0,89074.0,0.14641742]
[1767189158188,0.3982031,89086.0,89066.0,0.14545]
[1767189158189,0.55540508,89084.0,89075.0,0.14641742]
[1767189158408,0.39765,89083.0,89075.0,0.14641742]
[1767189159172,0.39765,89083.0,89075.0,0.13513742]
[1767189159372,0.39765,89083.0,89057.0,0.13513742]
[1767189159373,0.39765,89083.0,89058.0,0.10223]
[1767189159620,0.39765,89083.0,89071.0,0.13513742]
[1767189159796,0.39765,89079.0,89072.0,0.01128]
[1767189160230,0.39765,89079.0,89057.0,0.13513742]
[1767189160231,0.39765,89079.0,89055.0,0.2382]
[1767189160388,0.55540508,89070.0,89064.0,0.13513742]
[1767189160597,0.39765,89073.0,89065.0,0.01128]
[1767189160965,0.39765,89073.0,89049.0,0.13513742]
[1767189160966,0.39765,89073.0,89050.0,0.23949]
[1767189161206,0.55540508,89060.0,89049.0,0.13513742]
[1767189161354,0.55540508,89060.0,89051.0,0.04496]
[1767189161533,0.39765,89066.0,89052.0,0.01128]
[1767189161738,0.55540508,89061.0,89052.0,0.01128]
[1767189161940,0.39765,89066.0,89052.0,0.01128]
[1767189162348,0.01128,89081.0,89052.0,0.01128]
[1767189162349,0.39765,89080.0,89066.0,0.254999]
[1767189162575,0.0005531,89086.0,89066.0,0.254999]
[1767189162576,0.0002,89073.0,89067.0,0.26691]
[1767189162801,0.55540508,89080.0,89067.0,0.26691]
[1767189163197,0.39765,89080.0,89067.0,0.01128]
[1767189163363,0.95305508,89080.0,89067.0,0.01128]
[1767189163557,0.39765,89080.0,89067.0,0.01128]
[1767189163762,0.95305508,89080.0,89067.0,0.01128]
[1767189164393,0.39765,89080.0,89067.0,0.01128]
[1767189164915,0.95305508,89080.0,89067.0,0.01128]
[1767189165612,0.39765,89079.0,89067.0,0.01128]
[1767189167220,0.55540508,89080.0,89067.0,0.01128]
[1767189167607,0.95305508,89080.0,89067.0,0.01128]
[1767189168167,0.39765,89079.0,89067.0,0.01108]
[1767189168366,0.39765,89079.0,89063.0,0.26031]
[1767189168604,0.39765,89079.0,89064.0,0.01128]
[1767189168842,0.39765,89079.0,89065.0,0.01128]
[1767189168984,0.39765,89074.0,89066.0,0.01128]
[1767189169338,0.55540508,89075.0,89045.0,0.04492]
[1767189169339,0.5039195,89075.0,89045.0,0.04492]
[1767189169503,0.43656,89062.0,89054.0,0.01128]
[1767189169707,0.55540508,89070.0,89054.0,0.01128]
[1767189170025,0.55540508,89070.0,89039.0,0.01123103]
[1767189170026,0.43656,89069.0,89046.0,0.28581]
[1767189170378,0.43656,89069.0,89054.0,0.01128]
[1767189173990,0.55540508,89070.0,89054.0,0.01128]
[1767189173991,0.55540508,89070.0,89055.0,0.28962]
[1767189174190,0.43656,89075.0,89055.0,0.28962]
[1767189174400,0.43656,89075.0,89054.0,0.01128]
[1767189174746,0.01128,89079.0,89054.0,0.01128]
[1767189174747,0.43656,89069.0,89054.0,0.01128]
[1767189175387,0.43656,89069.0,89054.0,0.30171]
[1767189175778,0.43656,89069.0,89054.0,0.01128]
[1767189175985,0.55540508,89070.0,89054.0,0.3025]
[1767189176187,0.55536134,89070.0,89054.0,0.3025]
[1767189176701,0.99192134,89070.0,89054.0,0.01128]
[1767189176923,0.99192134,89070.0,89054.0,0.30329]
[1767189177112,0.43656,89069.0,89054.0,0.30329]
[1767189178561,0.0005531,89086.0,89059.0,0.37044595]
[1767189178562,0.37044595,89080.0,89059.0,0.37044595]
[1767189178901,0.43656,89079.0,89069.0,0.000549]
[1767189179105,0.37044595,89080.0,89070.0,0.01128]
[1767189179389,0.37044595,89080.0,89072.0,0.00019894]
[1767189179540,0.37044595,89082.0,89072.0,0.29448894]
[1767189179740,0.37044595,89082.0,89072.0,0.00019894]
[1767189179964,0.80700595,89082.0,89072.0,0.00019894]
[1767189180427,0.43656,89082.0,89072.0,0.00019894]
[1767189180619,0.0005531,89086.0,89072.0,0.00019894]
[1767189181531,0.0005531,89086.0,89072.0,0.29595894]
[1767189181689,0.0005531,89086.0,89072.0,0.00019894]
[1767189181690,4.1e-06,89086.0,89072.0,0.00019894]
[1767189181887,4.1e-06,89086.0,89073.0,0.29576]
[1767189182287,4.1e-06,89086.0,89072.0,0.00019894]
[1767189183236,0.43656,89081.0,89072.0,9.4e-07]
[1767189183575,0.43656,89081.0,89073.0,0.01128]
[1767189184511,4.1e-06,89086.0,89073.0,0.01128]
[1767189184752,0.4365641,89086.0,89073.0,0.01128]
[1767189185163,0.4365641,89086.0,89073.0,0.010929]
[1767189186960,0.4365641,89086.0,89072.0,9.4e-07]
[1767189189783,0.45479,89081.0,89072.0,9.4e-07]
[1767189189985,0.45479,89081.0,89054.0,0.32534]
[1767189190218,0.45479,89081.0,89055.0,0.01128]
[1767189190543,0.45479,89081.0,89055.0,0.3479]
[1767189191812,0.45479,89081.0,89047.0,0.06063505]
[1767189191813,0.45479,89081.0,89057.0,0.33817]
[1767189192642,0.45479,89079.0,89057.0,0.33817]
[1767189193255,0.45479,89069.0,89051.0,0.33881]
[1767189193429,0.45479,89069.0,89058.0,0.01128]
[1767189193729,0.55531806,89070.0,89058.0,0.01128]
[1767189194337,0.55531806,89070.0,89052.0,0.33943]
[1767189194513,0.55531806,89070.0,89047.0,0.06063505]
[1767189194514,0.55531806,89070.0,89059.0,0.01128]
[1767189194712,0.45479,89075.0,89070.0,0.000549]
[1767189194918,0.45479,89075.0,89059.0,0.01128]
[1767189195217,4.1e-06,89086.0,89075.0,0.00055]
[1767189195420,4.1e-06,89086.0,89065.0,0.34004]
[1767189195422,0.45479,89084.0,89065.0,0.34004]
[1767189200475,0.37032483,89080.0,89065.0,0.34004]
[1767189201125,0.81620483,89080.0,89065.0,0.34004]
[1767189201282,0.37032483,89080.0,89065.0,0.34004]
[1767189201879,0.79620483,89080.0,89065.0,0.34004]
[1767189202119,0.44588,89079.0,89065.0,0.34004]
[1767189202337,0.44588,89079.0,89059.0,0.35702]
[1767189202577,0.44588,89079.0,89060.0,0.01128]
[1767189202983,0.44588,89079.0,89060.0,0.35754]
[1767189203344,0.37032483,89080.0,89061.0,0.34626]
[1767189203550,0.44588,89079.0,89061.0,0.34626]
[1767189205098,0.44588,89079.0,89060.0,0.38160483]
[1767189205294,0.81620483,89070.0,89060.0,0.01128]
[1767189205500,0.44588,89069.0,89053.0,0.0002]
[1767189205674,0.44588,89069.0,89054.0,0.01128]
[1767189206298,0.44588,89063.0,89054.0,0.01128]
[1767189207699,0.44588,89063.0,89053.0,0.0002]
[1767189207907,0.44588,89063.0,89053.0,0.01148]
[1767189208344,0.44588,89062.0,89053.0,0.01148]
[1767189208502,0.37051171,89063.0,89030.0,0.37051171]
[1767189208503,0.44588,89052.0,89036.0,0.01128]
[1767189208704,0.44588,89052.0,89043.0,0.0002]
[1767189208899,0.44588,89062.0,89043.0,0.0002]
[1767189209154,0.44588,89059.0,89043.0,0.0002]
[1767189209709,0.44588,89059.0,89043.0,0.000549]
[1767189213478,0.45716,89059.0,89043.0,0.000549]
[1767189214256,0.45716,89059.0,89043.0,0.364129]
[1767189214655,0.45716,89059.0,89044.0,0.01128]
[1767189214863,0.44588,89059.0,89044.0,0.37529]
[1767189215063,0.445331,89059.0,89044.0,0.37529]
[1767189216055,0.445331,89059.0,89044.0,0.01128]
[1767189224612,0.45736,89063.0,89044.0,0.37965]
[1767189224852,0.37051171,89060.0,89044.0,0.37965]
[1767189225627,0.44588,89059.0,89046.0,0.01123015]
[1767189225898,0.0002,89063.0,89059.0,0.00055]
[1767189226224,0.0002,89063.0,89054.0,0.36871]
[1767189226814,0.0002,89063.0,89045.0,0.36904]
[1767189227014,0.44608,89063.0,89045.0,0.36904]
[1767189227218,0.0002,89063.0,89044.0,0.01128]
[1767189227511,0.44608,89063.0,89044.0,0.38032]
[1767189228374,0.0002,89063.0,89044.0,0.38032]
[1767189228675,0.0002,89063.0,89045.0,0.36969]
[1767189229455,0.43655,89063.0,89045.0,0.36969]
[1767189230298,0.0002,89063.0,89045.0,0.36969]
[1767189231279,0.0002,89063.0,89045.0,0.38092027]
[1767189231482,0.0002,89063.0,89047.0,0.3709]
[1767189231682,0.0002,89063.0,89046.0,0.37119]
[1767189234091,0.43635,89062.0,89046.0,0.37119]
[1767189234290,0.0002,89063.0,89044.0,0.01128]
[1767189234291,0.43635,89060.0,89044.0,0.01128]
[1767189234702,0.43635,89060.0,89044.0,0.38332]
[1767189234895,0.0002,89063.0,89044.0,0.38332]
[1767189235096,0.0002,89063.0,89045.0,0.37204]
[1767189235500,0.43655,89063.0,89045.0,0.37204]
[1767189235685,0.43655,89063.0,89044.0,0.01128]
[1767189238899,0.43655,89063.0,89044.0,0.38437]
[1767189239516,0.43655,89063.0,89043.0,0.000549]
[1767189239717,0.43635,89052.0,89043.0,0.000549]
[1767189239975,0.43635,89052.0,89043.0,0.011829]
[1767189240094,0.43635,89052.0,89032.0,0.37334]
[1767189240295,0.43635,89052.0,89032.0,0.00010595]
[1767189240556,0.43635,89052.0,89033.0,0.01128]
[1767189240760,0.13513742,89058.0,89033.0,0.01128]
[1767189240761,0.0002,89042.0,89033.0,0.01128]
[1767189241116,0.43655,89042.0,89034.0,0.01128]
[1767189241862,0.43655,89042.0,89012.0,0.47786807]
[1767189242026,0.43655,89042.0,89024.0,0.01128]
[1767189242027,0.43635,89039.0,89024.0,0.01128]
[1767189245167,0.0002,89042.0,89024.0,0.01128]
[1767189245168,0.0002,89042.0,89029.0,0.37051171]
[1767189245342,0.0002,89063.0,89042.0,0.0002]
[1767189245343,0.43635,89058.0,89042.0,0.0002]
[1767189245549,0.43635,89058.0,89042.0,0.4187]
[1767189246279,0.43635,89058.0,89040.0,0.37051171]
[1767189246487,0.43635,89058.0,89039.0,0.01128]
[1767189248193,0.0002,89063.0,89048.0,0.01122989]
[1767189248330,0.0002868,89070.0,89050.0,0.42044]
[1767189248331,0.43635,89064.0,89050.0,0.42044]
[1767189248542,0.43635,89069.0,89053.0,0.0002]
[1767189249050,0.0002868,89070.0,89053.0,0.0002]
[1767189249051,0.80686171,89063.0,89053.0,1e-06]
[1767189249256,0.43635,89062.0,89053.0,1e-06]
[1767189250695,0.01128,89064.0,89053.0,1e-06]
[1767189251026,0.01138589,89064.0,89053.0,1e-06]
[1767189251406,0.43645589,89064.0,89053.0,1e-06]
[1767189252593,0.43635,89062.0,89053.0,1e-06]
[1767189255579,0.00010589,89064.0,89053.0,1e-06]
[1767189256083,0.43635,89063.0,89053.0,1e-06]
[1767189257452,0.00010589,89064.0,89053.0,1e-06]
[1767189258244,0.43645589,89064.0,89053.0,1e-06]
[1767189258805,0.43245589,89064.0,89053.0,1e-06]
[1767189259124,0.44387,89069.0,89053.0,1e-06]
[1767189259334,0.44387,89069.0,89053.0,0.00010689]
[1767189259544,0.43259,89062.0,89053.0,0.00010689]
[1767189260077,0.43259,89062.0,89039.0,0.4279]
[1767189260219,0.43259,89062.0,89031.0,0.42801]
[1767189260425,0.43259,89060.0,89033.0,0.42801]
[1767189262744,0.43259,89059.0,89033.0,0.42801]
[1767189263923,0.43259,89059.0,89033.0,0.43924179]
[1767189264126,0.43259,89059.0,89033.0,0.42801]
[1767189264326,0.43259,89059.0,89033.0,0.43924179]
[1767189264528,0.43259,89059.0,89035.0,0.42895]
[1767189264718,0.43259,89059.0,89035.0,0.49633914]
[1767189264912,0.43259,89059.0,89036.0,0.44018141]
[1767189265118,0.43259,89059.0,89036.0,0.42895]
[1767189266134,0.43259,89059.0,89032.0,0.01128]
[1767189267671,0.43259,89059.0,89032.0,0.02251191]
[1767189267832,0.55591897,89060.0,89032.0,0.01128]
[1767189267833,0.43259,89057.0,89032.0,0.01128]
[1767189268029,0.43259,89057.0,89035.0,0.06738867]
[1767189268260,0.43259,89057.0,89032.0,0.01128]
[1767189268261,0.43259,89057.0,89034.0,0.42941]
[1767189268486,0.43259,89057.0,89035.0,0.01123153]
[1767189268679,0.43259,89057.0,89035.0,0.42956]
[1767189270907,0.44387,89056.0,89035.0,0.42956]
[1767189271132,0.44387,89056.0,89035.0,0.42984]
[1767189272606,0.44387,89056.0,89032.0,0.02251191]
[1767189272607,0.010731,89056.0,89041.0,0.4301]
[1767189272828,0.010731,89056.0,89042.0,0.01128]
[1767189273072,0.43259,89058.0,89042.0,0.01128]
[1767189274442,0.43259,89058.0,89043.0,0.43024]
[1767189274672,0.43259,89058.0,89042.0,0.01128]
[1767189276185,0.43259,89058.0,89042.0,0.44176]
[1767189278462,0.43259,89058.0,89042.0,0.01128]
[1767189278670,0.43259,89058.0,89042.0,0.44155]
[1767189278891,0.43259,89058.0,89042.0,0.01128]
[1767189281099,0.43259,89051.0,89042.0,1e-06]
[1767189284275,0.43259,89048.0,89031.0,0.44055597]
[1767189284479,0.43259,89048.0,89031.0,0.45183597]
[1767189284897,0.43259,89048.0,89031.0,0.01138597]
[1767189286654,0.37065631,89041.0,89031.0,0.01138597]
[1767189286854,0.01128,89050.0,89031.0,0.01138597]
[1767189286855,0.432041,89040.0,89031.0,0.01083597]
[1767189287271,0.43259,89049.0,89031.0,0.01083597]
[1767189288250,0.43259,89049.0,89032.0,0.44039]
[1767189289323,0.43196467,89049.0,89031.0,0.01083597]
[1767189289518,0.43196467,89049.0,89039.0,0.0002]
[1767189292340,0.43196467,89049.0,89032.0,0.44052]
[1767189292543,0.43196467,89049.0,89031.0,0.01083597]
[1767189292760,0.38193631,89050.0,89031.0,0.01083597]
[1767189292761,0.46958,89045.0,89031.0,0.01083597]
[1767189292967,0.46958,89045.0,89026.0,0.44052]
[1767189292968,0.37065631,89041.0,89026.0,0.44052]
[1767189293170,0.37076218,89041.0,89032.0,0.01128]
[1767189298456,0.37071881,89041.0,89032.0,0.01128]
[1767189298634,0.37071881,89041.0,89023.0,0.01123305]
[1767189298635,0.37071881,89041.0,89023.0,0.06739721]
[1767189298832,0.37071881,89041.0,89022.0,0.06759795]
[1767189298833,0.37071881,89041.0,89022.0,0.0002]
[1767189298834,0.46958,89032.0,89022.0,0.0002]
[1767189299036,0.01108,89031.0,89022.0,0.0002]
[1767189299232,0.01128,89034.0,89022.0,0.43962]
[1767189299689,0.46958,89033.0,89022.0,0.0002]
[1767189299811,0.37065631,89040.0,89022.0,0.0002]
[1767189299812,0.01128,89037.0,89022.0,0.0002]
[1767189300014,0.48086,89037.0,89022.0,0.0002]
[1767189301347,0.48086,89037.0,89014.0,0.01128]
[1767189301348,0.46958,89031.0,89014.0,0.01128]
[1767189301556,0.46953823,89031.0,89014.0,0.01128]
[1767189301742,0.84019454,89031.0,89014.0,0.01128]
[1767189301943,0.37065631,89031.0,89017.0,0.43903]
[1767189302143,0.0002,89032.0,89020.0,0.37065631]
[1767189302785,0.0002,89032.0,89017.0,0.43903]
[1767189302924,0.0002,89032.0,89020.0,0.37065631]
[1767189303123,0.00015842,89032.0,89020.0,0.37065631]
[1767189303359,0.46973842,89032.0,89020.0,0.37065631]
[1767189303951,0.46973842,89032.0,89012.0,0.0002]
[1767189303952,0.46973842,89032.0,89012.0,0.01148]
[1767189303953,0.000246,89021.0,89012.0,0.01148]
[1767189304587,0.46958,89027.0,89012.0,0.01148]
[1767189305594,0.38193631,89030.0,89013.0,0.46711]
[1767189306233,0.46958,89029.0,89013.0,0.46711]
[1767189306379,0.38193631,89030.0,89013.0,0.46711]
[1767189306579,0.46958,89029.0,89013.0,0.46711]
[1767189307691,0.46958,89029.0,89012.0,0.01148]
[1767189308318,0.37065631,89022.0,89013.0,0.46711]
[1767189308521,0.46958,89029.0,89013.0,0.46711]
[1767189308522,0.37065631,89023.0,89013.0,0.46711]
[1767189310050,0.37065631,89023.0,89012.0,0.01148]
[1767189311252,0.37065631,89022.0,89012.0,0.01148]
[1767189311469,0.37065631,89022.0,89013.0,0.46711]
[1767189312230,0.37065631,89023.0,89013.0,0.46711]
[1767189312425,0.37061279,89023.0,89013.0,0.46711]
[1767189312630,0.37061279,89023.0,89012.0,0.01148]
[1767189312847,0.37061279,89023.0,89012.0,0.47859]
[1767189313050,0.46958,89027.0,89012.0,0.47859]
[1767189313906,0.38193631,89030.0,89012.0,0.47859]
[1767189314109,0.01128,89030.0,89012.0,0.47859]
[1767189314310,0.46958,89029.0,89012.0,0.47859]
[1767189316246,0.37065631,89022.0,89012.0,0.01148]
[1767189316700,0.37065631,89022.0,89009.0,0.0002]
[1767189316701,0.000549,89012.0,89009.0,0.01148]
[1767189317256,0.37065631,89019.0,89009.0,0.01148]
[1767189317797,9.114e-05,89019.0,89009.0,0.01148]
[1767189318004,0.37074745,89019.0,89009.0,0.01148]
[1767189318522,0.37074745,89019.0,88997.0,0.00072015]
[1767189318524,0.000549,89009.0,88997.0,0.00072015]
[1767189318728,0.43382,89008.0,88998.0,0.01128]
[1767189318935,0.37065631,89010.0,88998.0,0.01128]
[1767189319634,9.114e-05,89019.0,88999.0,0.47645]
[1767189319635,0.44298,89018.0,88999.0,0.47645]
[1767189319850,0.44298,89018.0,89001.0,0.47645]
[1767189320070,0.37065631,89011.0,89001.0,0.47645]
[1767189320474,0.37065631,89011.0,88998.0,0.01128]
[1767189321721,0.01128,89014.0,88998.0,0.48773]
[1767189322553,0.01123153,89035.0,88998.0,0.48773]
[1767189322554,0.44298,89036.0,89014.0,0.00055]
[1767189322786,0.0002,89039.0,89014.0,0.00055]
[1767189322787,0.0002,89039.0,89023.0,0.48768305]
[1767189322788,0.0001683,89032.0,89023.0,0.48768305]
[1767189322981,0.0001683,89032.0,89023.0,0.47645]
[1767189323217,0.0001683,89032.0,89023.0,0.48773]
[1767189323584,0.01128,89046.0,89023.0,0.48773]
[1767189323585,0.01128,89044.0,89032.0,0.000168]
[1767189323784,0.44298,89049.0,89032.0,0.487898]
[1767189323988,0.44303157,89049.0,89032.0,0.48773]
[1767189324196,0.44303157,89049.0,89032.0,0.01128]
[1767189325209,0.37065631,89042.0,89032.0,0.01128]
[1767189326680,0.37065631,89042.0,89032.0,1.1e-05]
[1767189327837,5.157e-05,89049.0,89032.0,0.476461]
[1767189328016,0.44303157,89049.0,89032.0,1.1e-05]
[1767189328543,5.157e-05,89049.0,89032.0,1.1e-05]
[1767189328890,0.44303157,89049.0,89032.0,1.1e-05]
[1767189329511,0.44298,89047.0,89032.0,1.1e-05]
[1767189330189,0.37066653,89042.0,89032.0,1.1e-05]
[1767189330364,0.45426,89041.0,89008.0,0.47645]
[1767189330555,0.44298,89024.0,89009.0,0.01128]
[1767189330794,0.81364653,89030.0,89010.0,0.47645]
[1767189331042,0.44298,89029.0,89010.0,0.47645]
[1767189333678,0.44298,89029.0,89015.0,0.06740426]
[1767189333873,0.44298,89029.0,89015.0,0.54385426]
[1767189334174,0.44298,89029.0,89012.0,0.05617219]
[1767189334373,0.44298,89029.0,89011.0,0.47645]
[1767189334764,0.44298,89029.0,89009.0,0.01128]
[1767189334765,0.44298,89027.0,89009.0,0.01128]
[1767189335098,0.01128,89033.0,89009.0,0.01128]
[1767189335099,0.44298,89019.0,89009.0,0.01128]
[1767189335300,0.37066653,89020.0,89009.0,0.01128]
[1767189336253,0.37066653,89020.0,89009.0,0.01133157]
[1767189336898,0.44298,89025.0,89009.0,0.01133157]
[1767189339495,0.44298,89025.0,89000.0,0.37066653]
[1767189339496,0.000549,89009.0,88999.0,0.00031291]
[1767189339682,0.01128,89008.0,88999.0,0.00040405]
[1767189340618,0.01128,89009.0,88999.0,0.00040405]
[1767189341048,0.44298,89012.0,88999.0,0.00040405]
[1767189341241,0.44298,89010.0,88999.0,0.00040405]
[1767189341624,0.01128,89011.0,88999.0,0.00040405]
[1767189342046,0.01128,89010.0,88999.0,0.00040405]
[1767189342867,0.45426,89010.0,88999.0,0.00040405]
[1767189343170,0.01128,89010.0,88999.0,0.00040405]
[1767189343368,0.01128,89009.0,88999.0,0.00040405]
[1767189343517,0.44298,89011.0,88999.0,0.00040405]
[1767189343737,0.01128,89010.0,88999.0,0.00040405]
[1767189344144,0.45426,89010.0,88999.0,0.00040405]
[1767189344544,0.01128,89010.0,88999.0,0.00040405]
[1767189344746,0.45426,89010.0,88999.0,0.00040405]
[1767189345582,0.45426,89010.0,88991.0,0.47645]
[1767189345783,0.82501773,89010.0,88991.0,0.47645]
[1767189345949,0.82501773,89010.0,88987.0,0.01128]
[1767189345950,0.44298,89009.0,88988.0,0.47645]
[1767189349622,0.47635,89007.0,88987.0,0.01128]
[1767189349826,0.47635,89007.0,88987.0,0.46261]
[1767189350058,0.48763,89006.0,88987.0,0.46261]
[1767189350628,0.48763,89006.0,88987.0,0.47384759]
[1767189350813,0.48763,89006.0,88987.0,0.53003549]
[1767189351014,9.12e-05,89010.0,88993.0,0.45133]
[1767189351244,9.12e-05,89010.0,89001.0,0.45133]
[1767189351431,0.01128,89009.0,89001.0,0.45133]
[1767189351860,0.01128,89009.0,88999.0,0.37066653]
[1767189352053,0.01128,89009.0,88999.0,0.82199653]
[1767189352641,0.01128,89009.0,88999.0,0.45133]
[1767189353325,0.01128,89009.0,88991.0,0.45133]
[1767189356934,0.01128,89009.0,88987.0,0.01128]
[1767189356935,0.47635,89008.0,88987.0,0.01128]
[1767189357599,0.47635,89008.0,88987.0,0.46261]
[1767189360906,0.47635,89008.0,88987.0,0.01128]
[1767189361972,0.47635,89008.0,88987.0,0.46261]
[1767189362153,0.47635,89006.0,88987.0,0.46261]
[1767189362875,0.47635,89006.0,88987.0,0.01128]
[1767189364281,0.47635,89006.0,88987.0,0.46261]
[1767189364494,0.47635,89006.0,88987.0,0.01128]
[1767189364903,0.47635,89006.0,88987.0,0.46261]
[1767189365342,0.47635,89006.0,88987.0,0.01128]
[1767189366363,0.47635,89006.0,88988.0,0.45133]
[1767189366733,0.47635,89006.0,88987.0,0.01128]
[1767189368926,0.47635,89006.0,88988.0,0.45133]
[1767189369338,0.47635,89006.0,88987.0,0.01128]
[1767189370880,0.47635,89006.0,88988.0,0.45133]
[1767189371294,0.47635,89006.0,88987.0,0.01128]
[1767189372848,0.47635,89006.0,88988.0,0.45133]
[1767189373051,0.47635,89006.0,88987.0,0.01128]
[1767189373914,0.47635,89006.0,88990.0,0.82199653]
[1767189374147,0.01128,89006.0,88993.0,0.05618367]
[1767189374353,0.01128,89006.0,88992.0,0.51875053]
[1767189374762,0.01128,89006.0,88993.0,0.01123683]
[1767189374969,0.01073,89006.0,88993.0,0.46256683]
[1767189375598,0.01073,89006.0,88993.0,0.45133]
[1767189375802,0.01073,89006.0,88993.0,0.46256683]
[1767189376443,9.12e-05,89010.0,88993.0,0.46256683]
[1767189376648,0.01128,89009.0,88995.0,0.45133]
[1767189377801,0.48763,89009.0,88992.0,0.01123696]